[Event "January 2 Early 2024"]
[Site "https://www.chess.com"]
[Date "2024.01.02"]
[Round "1"]
[White "Adelman, Charles"]
[Black "Volkov, Sergei"]
[Result "1-0"]
[Board "264"]
[TimeControl "180+1"]
[WhiteFideId "2003597"]
[BlackFideId "4176588"]
[WhiteElo "2156"]
[BlackElo "2579"]
[WhiteTeam "USA"]
[BlackTeam "RUS"]
[WhiteClock "0:01:10"]
[BlackClock "0:00:00"]

1. Nf3 {[%clk 0:03:00]}  d5 {[%clk 0:02:46]} 2. b3 {[%clk 0:03:00]}  Nf6 {[%clk 0:02:45]} 3. Bb2 {[%clk 0:03:00]}  Bf5 {[%clk 0:02:44]} 4. g3 {[%clk 0:02:59]}  e6 {[%clk 0:02:44]} 5. c4 {[%clk 0:02:58]}  Nbd7 {[%clk 0:02:32]} 6. Bg2 {[%clk 0:02:58]}  h6 {[%clk 0:02:29]} 7. O-O {[%clk 0:02:59]}  Be7 {[%clk 0:02:27]} 8. d3 {[%clk 0:02:58]}  O-O {[%clk 0:02:25]} 9. Nbd2 {[%clk 0:02:59]}  c6 {[%clk 0:02:23]} 10. Rc1 {[%clk 0:02:58]}  a5 {[%clk 0:02:19]} 11. a3 {[%clk 0:02:58]}  Bh7 {[%clk 0:02:18]} 12. Rc2 {[%clk 0:02:57]}  Re8 {[%clk 0:02:14]} 13. Qa1 {[%clk 0:02:56]}  Bf8 {[%clk 0:02:07]} 14. Rfc1 {[%clk 0:02:53]}  Qb6 {[%clk 0:01:52]} 15. Ne5 {[%clk 0:02:42]}  Nxe5 {[%clk 0:01:45]} 16. Bxe5 {[%clk 0:02:41]}  Ng4 {[%clk 0:01:41]} 17. Bd4 {[%clk 0:02:30]}  c5 {[%clk 0:01:39]} 18. Bb2 {[%clk 0:02:22]}  d4 {[%clk 0:01:37]} 19. Qb1 {[%clk 0:02:06]}  e5 {[%clk 0:01:33]} 20. Ba1 {[%clk 0:01:57]}  f5 {[%clk 0:01:18]} 21. Bd5+ {[%clk 0:01:51]}  Kh8 {[%clk 0:01:18]} 22. b4 {[%clk 0:01:49]}  axb4 {[%clk 0:00:52]} 23. axb4 {[%clk 0:01:48]}  Nf6 {[%clk 0:00:38]} 24. bxc5 {[%clk 0:01:42]}  Qxc5 {[%clk 0:00:36]} 25. Bg2 {[%clk 0:01:33]}  e4 {[%clk 0:00:20]} 26. Nb3 {[%clk 0:01:33]}  Qe7 {[%clk 0:00:09]} 27. Nxd4 {[%clk 0:01:28]}  exd3 {[%clk 0:00:09]} 28. exd3 {[%clk 0:01:28]}  f4 {[%clk 0:00:10]} 29. Qxb7 {[%clk 0:01:23]}  Bxd3 {[%clk 0:00:04]} 30. Qxe7 {[%clk 0:01:20]}  Bxe7 {[%clk 0:00:04]} 31. Bxa8 {[%clk 0:01:19]}  Bxc2 {[%clk 0:00:02]} 32. Bc6 {[%clk 0:01:13]}  Rd8 {[%clk 0:00:01]} 33. Rxc2 {[%clk 0:01:13]}  Bc5 {[%clk 0:00:01]} 34. Ne6 {[%clk 0:01:11]}  Rd1+ {[%clk 0:00:01]} 35. Kg2 {[%clk 0:01:11]}  Rxa1 {[%clk 0:00:02]} 36. Nxc5 {[%clk 0:01:11]}  fxg3 {[%clk 0:00:00]} 37. hxg3 {[%clk 0:01:10]} 1-0

[Event "January 2 Early 2024"]
[Site "https://www.chess.com"]
[Date "2024.01.02"]
[Round "1"]
[White "Jing, Andrew"]
[Black "Solovchuk, Oleksiy"]
[Result "0-1"]
[Board "266"]
[TimeControl "180+1"]
[WhiteFideId "30984076"]
[BlackFideId "14115220"]
[WhiteElo "2138"]
[BlackElo "2579"]
[WhiteTeam "USA"]
[BlackTeam "UKR"]
[WhiteClock "0:02:25"]
[BlackClock "0:02:18"]

1. d4 {[%clk 0:03:00]}  Nf6 {[%clk 0:02:56]} 2. c4 {[%clk 0:02:59]}  e6 {[%clk 0:02:56]} 3. g3 {[%clk 0:02:59]}  d5 {[%clk 0:02:55]} 4. Bg2 {[%clk 0:02:59]}  dxc4 {[%clk 0:02:55]} 5. Nf3 {[%clk 0:02:58]}  c5 {[%clk 0:02:55]} 6. O-O {[%clk 0:02:57]}  Nc6 {[%clk 0:02:55]} 7. dxc5 {[%clk 0:02:56]}  Qxd1 {[%clk 0:02:54]} 8. Rxd1 {[%clk 0:02:57]}  Bxc5 {[%clk 0:02:53]} 9. Nbd2 {[%clk 0:02:57]}  c3 {[%clk 0:02:52]} 10. bxc3 {[%clk 0:02:58]}  O-O {[%clk 0:02:51]} 11. Nb3 {[%clk 0:02:59]}  Be7 {[%clk 0:02:49]} 12. Nfd4 {[%clk 0:02:59]}  Bd7 {[%clk 0:02:47]} 13. Nb5 {[%clk 0:02:57]}  Rac8 {[%clk 0:02:45]} 14. a4 {[%clk 0:02:57]}  a6 {[%clk 0:02:42]} 15. Nd6 {[%clk 0:02:56]}  Rc7 {[%clk 0:02:39]} 16. Ba3 {[%clk 0:02:54]}  Rd8 {[%clk 0:02:34]} 17. Nc5 {[%clk 0:02:43]}  Bc8 {[%clk 0:02:33]} 18. Ndxb7 {[%clk 0:02:39]}  Rxd1+ {[%clk 0:02:31]} 19. Rxd1 {[%clk 0:02:40]}  Bxb7 {[%clk 0:02:27]} 20. Nxb7 {[%clk 0:02:40]}  Bxa3 {[%clk 0:02:26]} 21. Nd8 {[%clk 0:02:36]}  Nxd8 {[%clk 0:02:24]} 22. Rxd8+ {[%clk 0:02:37]}  Bf8 {[%clk 0:02:24]} 23. Ra8 {[%clk 0:02:36]}  Rxc3 {[%clk 0:02:20]} 24. Rxa6 {[%clk 0:02:35]}  Rc1+ {[%clk 0:02:20]} 25. Bf1 {[%clk 0:02:35]}  g5 {[%clk 0:02:20]} 26. f3 {[%clk 0:02:36]}  Bc5+ {[%clk 0:02:19]} 27. Kg2 {[%clk 0:02:25]}  Nd5 {[%clk 0:02:18]} 0-1

[Event "January 2 Early 2024"]
[Site "https://www.chess.com"]
[Date "2024.01.02"]
[Round "1"]
[White "Roberson, Peter T"]
[Black "Latreche, Khadidja"]
[Result "1-0"]
[Board "271"]
[TimeControl "180+1"]
[WhiteFideId "412384"]
[BlackFideId "7901780"]
[WhiteElo "2567"]
[BlackElo "2116"]
[WhiteTeam "ENG"]
[BlackTeam "ALG"]
[WhiteClock "0:00:51"]
[BlackClock "0:00:12"]

1. b3 {[%clk 0:03:00]}  d5 {[%clk 0:02:57]} 2. Bb2 {[%clk 0:03:00]}  c5 {[%clk 0:02:54]} 3. e3 {[%clk 0:02:59]}  Nc6 {[%clk 0:02:51]} 4. Bb5 {[%clk 0:02:58]}  Bf5 {[%clk 0:02:46]} 5. Nf3 {[%clk 0:02:57]}  a6 {[%clk 0:02:44]} 6. Bxc6+ {[%clk 0:02:56]}  bxc6 {[%clk 0:02:44]} 7. d3 {[%clk 0:02:57]}  Nf6 {[%clk 0:02:42]} 8. Nbd2 {[%clk 0:02:57]}  e6 {[%clk 0:02:42]} 9. Qe2 {[%clk 0:02:57]}  Bd6 {[%clk 0:02:42]} 10. e4 {[%clk 0:02:54]}  dxe4 {[%clk 0:02:34]} 11. dxe4 {[%clk 0:02:54]}  Bg4 {[%clk 0:02:27]} 12. e5 {[%clk 0:02:54]}  Nd5 {[%clk 0:02:02]} 13. exd6 {[%clk 0:02:49]}  Qxd6 {[%clk 0:02:00]} 14. Nc4 {[%clk 0:02:46]}  Qe7 {[%clk 0:01:56]} 15. Bxg7 {[%clk 0:02:42]}  Rg8 {[%clk 0:01:56]} 16. Be5 {[%clk 0:02:42]}  f6 {[%clk 0:01:46]} 17. Bd6 {[%clk 0:02:38]}  Qg7 {[%clk 0:01:40]} 18. O-O-O {[%clk 0:02:16]}  e5 {[%clk 0:01:38]} 19. Bxc5 {[%clk 0:02:08]}  Nc3 {[%clk 0:01:18]} 20. Nd6+ {[%clk 0:01:54]}  Kd8 {[%clk 0:00:50]} 21. Qc4 {[%clk 0:01:42]}  Nxa2+ {[%clk 0:00:39]} 22. Kb2 {[%clk 0:01:39]}  Kc7 {[%clk 0:00:37]} 23. Kxa2 {[%clk 0:01:36]}  a5 {[%clk 0:00:31]} 24. Qf7+ {[%clk 0:01:19]}  Qxf7 {[%clk 0:00:30]} 25. Nxf7 {[%clk 0:01:17]}  a4 {[%clk 0:00:28]} 26. Kb2 {[%clk 0:01:12]}  axb3 {[%clk 0:00:22]} 27. cxb3 {[%clk 0:01:08]}  Be6 {[%clk 0:00:19]} 28. Nd6 {[%clk 0:00:54]}  Rxg2 {[%clk 0:00:19]} 29. Rhg1 {[%clk 0:00:53]}  Rxg1 {[%clk 0:00:18]} 30. Rxg1 {[%clk 0:00:54]}  Rb8 {[%clk 0:00:17]} 31. Rg7+ {[%clk 0:00:53]}  Bd7 {[%clk 0:00:17]} 32. Ne4 {[%clk 0:00:53]}  Rb5 {[%clk 0:00:12]} 33. Nxf6 {[%clk 0:00:51]} 1-0

[Event "January 2 Early 2024"]
[Site "https://www.chess.com"]
[Date "2024.01.02"]
[Round "1"]
[White "Novikova, Margarita"]
[Black "Korchynskyi, Mykola"]
[Result "0-1"]
[Board "274"]
[TimeControl "180+1"]
[WhiteFideId "14109689"]
[BlackFideId "34138005"]
[WhiteElo "2112"]
[BlackElo "2563"]
[WhiteTeam "GER"]
[BlackTeam "UKR"]
[WhiteClock "0:01:17"]
[BlackClock "0:01:40"]

1. e4 {[%clk 0:02:59]}  e6 {[%clk 0:03:00]} 2. d4 {[%clk 0:02:54]}  d5 {[%clk 0:03:01]} 3. exd5 {[%clk 0:02:54]}  exd5 {[%clk 0:03:02]} 4. Bd3 {[%clk 0:02:55]}  Nf6 {[%clk 0:03:01]} 5. Nf3 {[%clk 0:02:54]}  Bd6 {[%clk 0:03:02]} 6. O-O {[%clk 0:02:54]}  O-O {[%clk 0:02:57]} 7. Bg5 {[%clk 0:02:53]}  Bg4 {[%clk 0:02:56]} 8. Nbd2 {[%clk 0:02:52]}  Nbd7 {[%clk 0:02:55]} 9. c3 {[%clk 0:02:52]}  c6 {[%clk 0:02:53]} 10. h3 {[%clk 0:02:52]}  Bh5 {[%clk 0:02:53]} 11. Qc2 {[%clk 0:02:51]}  Qc7 {[%clk 0:02:54]} 12. Bf5 {[%clk 0:02:46]}  Bg6 {[%clk 0:02:48]} 13. Nh4 {[%clk 0:02:44]}  Rfe8 {[%clk 0:02:45]} 14. Nxg6 {[%clk 0:02:41]}  hxg6 {[%clk 0:02:46]} 15. Bd3 {[%clk 0:02:37]}  b6 {[%clk 0:02:42]} 16. Rfe1 {[%clk 0:02:37]}  c5 {[%clk 0:02:42]} 17. Bb5 {[%clk 0:02:30]}  cxd4 {[%clk 0:02:35]} 18. Rxe8+ {[%clk 0:02:19]}  Rxe8 {[%clk 0:02:17]} 19. Qa4 {[%clk 0:02:19]}  dxc3 {[%clk 0:02:06]} 20. Bxf6 {[%clk 0:02:16]}  cxd2 {[%clk 0:02:05]} 21. Bc3 {[%clk 0:02:11]}  Qxc3 {[%clk 0:01:45]} 22. bxc3 {[%clk 0:02:02]}  Re1+ {[%clk 0:01:45]} 23. Bf1 {[%clk 0:01:27]}  Rxa1 {[%clk 0:01:41]} 24. Qxd7 {[%clk 0:01:26]}  d1=Q {[%clk 0:01:41]} 25. Qd8+ {[%clk 0:01:17]}  Bf8 {[%clk 0:01:40]} 0-1

[Event "January 2 Early 2024"]
[Site "https://www.chess.com"]
[Date "2024.01.02"]
[Round "1"]
[White "Rogov, Matfey"]
[Black "Dahlgren, James Allen"]
[Result "1-0"]
[Board "275"]
[TimeControl "180+1"]
[WhiteFideId "44191308"]
[BlackFideId "22256873"]
[WhiteElo "2561"]
[BlackElo "2111"]
[WhiteTeam "RUS"]
[BlackTeam "ESP"]
[WhiteClock "0:01:51"]
[BlackClock "0:01:06"]

1. Nc3 {[%clk 0:02:59]}  e6 {[%clk 0:02:58]} 2. d4 {[%clk 0:02:58]}  c5 {[%clk 0:02:57]} 3. d5 {[%clk 0:02:56]}  Nf6 {[%clk 0:02:52]} 4. e4 {[%clk 0:02:56]}  d6 {[%clk 0:02:49]} 5. Nf3 {[%clk 0:02:54]}  e5 {[%clk 0:02:50]} 6. Bb5+ {[%clk 0:02:52]}  Nbd7 {[%clk 0:02:48]} 7. O-O {[%clk 0:02:51]}  Be7 {[%clk 0:02:44]} 8. Re1 {[%clk 0:02:42]}  O-O {[%clk 0:02:42]} 9. h3 {[%clk 0:02:43]}  a6 {[%clk 0:02:38]} 10. Bf1 {[%clk 0:02:42]}  b5 {[%clk 0:02:36]} 11. g4 {[%clk 0:02:40]}  Ne8 {[%clk 0:02:21]} 12. Ne2 {[%clk 0:02:39]}  a5 {[%clk 0:02:11]} 13. Ng3 {[%clk 0:02:31]}  g6 {[%clk 0:02:05]} 14. Bxb5 {[%clk 0:02:30]}  Qb6 {[%clk 0:02:03]} 15. a4 {[%clk 0:02:28]}  Nc7 {[%clk 0:02:02]} 16. c4 {[%clk 0:02:27]}  Nxb5 {[%clk 0:01:56]} 17. axb5 {[%clk 0:02:26]}  f6 {[%clk 0:01:38]} 18. Bh6 {[%clk 0:02:22]}  Rf7 {[%clk 0:01:38]} 19. Kh2 {[%clk 0:02:21]}  Bf8 {[%clk 0:01:36]} 20. Bd2 {[%clk 0:02:16]}  Rg7 {[%clk 0:01:31]} 21. Ra4 {[%clk 0:02:16]}  Qc7 {[%clk 0:01:29]} 22. Qe2 {[%clk 0:02:15]}  Nb6 {[%clk 0:01:27]} 23. Rxa5 {[%clk 0:02:02]}  Bb7 {[%clk 0:01:16]} 24. Rxa8 {[%clk 0:01:59]}  Nxa8 {[%clk 0:01:17]} 25. g5 {[%clk 0:01:57]}  Rf7 {[%clk 0:01:14]} 26. gxf6 {[%clk 0:01:55]}  Rxf6 {[%clk 0:01:14]} 27. Bg5 {[%clk 0:01:52]}  Rf7 {[%clk 0:01:13]} 28. Ra1 {[%clk 0:01:51]}  Be7 {[%clk 0:01:11]} 29. h4 {[%clk 0:01:50]}  Bxg5 {[%clk 0:01:11]} 30. Nxg5 {[%clk 0:01:51]}  Rf8 {[%clk 0:01:06]} 31. Ne6 {[%clk 0:01:51]} 1-0

[Event "January 2 Early 2024"]
[Site "https://www.chess.com"]
[Date "2024.01.02"]
[Round "1"]
[White "Morgunov, Marc"]
[Black "Brandao, Marcius Gomes"]
[Result "1-0"]
[Board "279"]
[TimeControl "180+1"]
[WhiteFideId "1640305"]
[BlackFideId "2124980"]
[WhiteElo "2555"]
[BlackElo "2062"]
[WhiteTeam "AUT"]
[BlackTeam "BRA"]
[WhiteClock "0:00:43"]
[BlackClock "0:00:00"]

1. e4 {[%clk 0:03:00]}  c5 {[%clk 0:02:58]} 2. Nf3 {[%clk 0:03:00]}  Nc6 {[%clk 0:02:58]} 3. d4 {[%clk 0:03:01]}  cxd4 {[%clk 0:02:58]} 4. Nxd4 {[%clk 0:03:01]}  e5 {[%clk 0:02:58]} 5. Nb5 {[%clk 0:03:01]}  d6 {[%clk 0:02:58]} 6. c4 {[%clk 0:03:01]}  Be7 {[%clk 0:02:56]} 7. Bd3 {[%clk 0:03:00]}  Nf6 {[%clk 0:02:36]} 8. N1c3 {[%clk 0:02:59]}  a6 {[%clk 0:02:36]} 9. Na3 {[%clk 0:02:58]}  O-O {[%clk 0:02:35]} 10. O-O {[%clk 0:02:56]}  Be6 {[%clk 0:02:31]} 11. h3 {[%clk 0:02:42]}  Rc8 {[%clk 0:02:18]} 12. Be3 {[%clk 0:02:41]}  Qd7 {[%clk 0:01:59]} 13. Rc1 {[%clk 0:02:39]}  Bd8 {[%clk 0:01:49]} 14. b3 {[%clk 0:01:50]}  Kh8 {[%clk 0:01:46]} 15. Nc2 {[%clk 0:01:43]}  Ng8 {[%clk 0:01:45]} 16. Na4 {[%clk 0:01:38]}  f5 {[%clk 0:01:28]} 17. exf5 {[%clk 0:01:37]}  Bxf5 {[%clk 0:01:26]} 18. Nb6 {[%clk 0:01:35]}  Bxb6 {[%clk 0:01:23]} 19. Bxb6 {[%clk 0:01:36]}  e4 {[%clk 0:01:15]} 20. Be2 {[%clk 0:01:34]}  Nf6 {[%clk 0:01:06]} 21. Ne3 {[%clk 0:01:33]}  Be6 {[%clk 0:00:53]} 22. Qd2 {[%clk 0:01:31]}  Ne5 {[%clk 0:00:45]} 23. Rfd1 {[%clk 0:01:30]}  Qc6 {[%clk 0:00:36]} 24. Qxd6 {[%clk 0:01:26]}  Nd3 {[%clk 0:00:12]} 25. Qxc6 {[%clk 0:01:15]}  Rxc6 {[%clk 0:00:13]} 26. Bxd3 {[%clk 0:01:15]}  Rxb6 {[%clk 0:00:11]} 27. Be2 {[%clk 0:01:14]}  Rc6 {[%clk 0:00:10]} 28. Rd4 {[%clk 0:01:11]}  h6 {[%clk 0:00:08]} 29. Rcd1 {[%clk 0:01:11]}  Rfc8 {[%clk 0:00:06]} 30. Rd8+ {[%clk 0:01:11]}  Rxd8 {[%clk 0:00:05]} 31. Rxd8+ {[%clk 0:01:12]}  Kh7 {[%clk 0:00:05]} 32. Kf1 {[%clk 0:01:08]}  Rc7 {[%clk 0:00:04]} 33. Ke1 {[%clk 0:01:07]}  Nd7 {[%clk 0:00:04]} 34. Kd2 {[%clk 0:00:53]}  Ne5 {[%clk 0:00:03]} 35. Nd5 {[%clk 0:00:50]}  Rf7 {[%clk 0:00:02]} 36. Ke3 {[%clk 0:00:47]}  Nc6 {[%clk 0:00:00]} 37. Re8 {[%clk 0:00:43]} 1-0

[Event "January 2 Early 2024"]
[Site "https://www.chess.com"]
[Date "2024.01.02"]
[Round "1"]
[White "Crocker, Philip J"]
[Black "Rodchenkov, Sergey D."]
[Result "1-0"]
[Board "280"]
[TimeControl "180+1"]
[WhiteFideId "403180"]
[BlackFideId "4168712"]
[WhiteElo "2061"]
[BlackElo "2555"]
[WhiteTeam "ENG"]
[BlackTeam "RUS"]
[WhiteClock "0:01:09"]
[BlackClock "0:01:11"]

1. e4 {[%clk 0:02:58]}  c5 {[%clk 0:02:59]} 2. Nf3 {[%clk 0:02:57]}  d6 {[%clk 0:02:58]} 3. d4 {[%clk 0:02:56]}  cxd4 {[%clk 0:02:59]} 4. Nxd4 {[%clk 0:02:57]}  Nf6 {[%clk 0:03:00]} 5. Nc3 {[%clk 0:02:56]}  a6 {[%clk 0:03:00]} 6. Bg5 {[%clk 0:02:56]}  e6 {[%clk 0:03:01]} 7. f4 {[%clk 0:02:54]}  h6 {[%clk 0:03:01]} 8. Bh4 {[%clk 0:02:52]}  Qb6 {[%clk 0:03:01]} 9. Qd2 {[%clk 0:02:49]}  Qxb2 {[%clk 0:03:01]} 10. Rb1 {[%clk 0:02:48]}  Qa3 {[%clk 0:03:02]} 11. Be2 {[%clk 0:02:45]}  Nc6 {[%clk 0:02:57]} 12. Nxc6 {[%clk 0:02:42]}  bxc6 {[%clk 0:02:58]} 13. e5 {[%clk 0:02:35]}  Nd5 {[%clk 0:02:53]} 14. Nxd5 {[%clk 0:02:24]}  cxd5 {[%clk 0:02:47]} 15. O-O {[%clk 0:02:24]}  dxe5 {[%clk 0:02:41]} 16. fxe5 {[%clk 0:02:23]}  Bc5+ {[%clk 0:02:39]} 17. Kh1 {[%clk 0:02:20]}  Qe3 {[%clk 0:02:37]} 18. Qxe3 {[%clk 0:02:09]}  Bxe3 {[%clk 0:02:38]} 19. Rb3 {[%clk 0:02:05]}  Bd4 {[%clk 0:02:26]} 20. Bg3 {[%clk 0:02:02]}  O-O {[%clk 0:02:21]} 21. c3 {[%clk 0:02:01]}  Bc5 {[%clk 0:02:16]} 22. h3 {[%clk 0:01:38]}  a5 {[%clk 0:02:06]} 23. a4 {[%clk 0:01:33]}  Bd7 {[%clk 0:02:02]} 24. Bb5 {[%clk 0:01:33]}  Rab8 {[%clk 0:01:35]} 25. Rfb1 {[%clk 0:01:33]}  Bxb5 {[%clk 0:01:35]} 26. Rxb5 {[%clk 0:01:32]}  Ba7 {[%clk 0:01:35]} 27. Kh2 {[%clk 0:01:26]}  g5 {[%clk 0:01:29]} 28. Rb7 {[%clk 0:01:17]}  Rfc8 {[%clk 0:01:14]} 29. h4 {[%clk 0:01:13]}  Be3 {[%clk 0:01:11]} 30. Rxb8 {[%clk 0:01:09]} 1-0

[Event "January 2 Early 2024"]
[Site "https://www.chess.com"]
[Date "2024.01.02"]
[Round "1"]
[White "Sharapov, Evgeny"]
[Black "Quirke, Jeffrey"]
[Result "1-0"]
[Board "281"]
[TimeControl "180+1"]
[WhiteFideId "14103133"]
[BlackFideId "2013029"]
[WhiteElo "2555"]
[BlackElo "2038"]
[WhiteTeam "UKR"]
[BlackTeam "USA"]
[WhiteClock "0:02:04"]
[BlackClock "0:00:04"]

1. e4 {[%clk 0:02:59]}  e6 {[%clk 0:02:59]} 2. d4 {[%clk 0:02:59]}  d5 {[%clk 0:02:59]} 3. Nc3 {[%clk 0:02:59]}  Nf6 {[%clk 0:02:59]} 4. e5 {[%clk 0:02:59]}  Nfd7 {[%clk 0:02:59]} 5. f4 {[%clk 0:02:59]}  c5 {[%clk 0:02:59]} 6. Nf3 {[%clk 0:03:00]}  Nc6 {[%clk 0:03:00]} 7. Be3 {[%clk 0:03:00]}  Rb8 {[%clk 0:02:59]} 8. Qd2 {[%clk 0:03:00]}  Qa5 {[%clk 0:02:58]} 9. Be2 {[%clk 0:02:58]}  b5 {[%clk 0:02:57]} 10. O-O {[%clk 0:02:58]}  b4 {[%clk 0:02:54]} 11. Nd1 {[%clk 0:02:58]}  Ba6 {[%clk 0:02:51]} 12. Bxa6 {[%clk 0:02:57]}  Qxa6 {[%clk 0:02:51]} 13. Nf2 {[%clk 0:02:57]}  Be7 {[%clk 0:02:46]} 14. Kh1 {[%clk 0:02:56]}  O-O {[%clk 0:02:37]} 15. a3 {[%clk 0:02:55]}  Qb6 {[%clk 0:02:29]} 16. axb4 {[%clk 0:02:54]}  Qxb4 {[%clk 0:02:28]} 17. Qxb4 {[%clk 0:02:53]}  Rxb4 {[%clk 0:02:25]} 18. Nd3 {[%clk 0:02:52]}  Rb7 {[%clk 0:02:13]} 19. dxc5 {[%clk 0:02:52]}  Rc8 {[%clk 0:02:02]} 20. b3 {[%clk 0:02:44]}  Kf8 {[%clk 0:00:53]} 21. Ra4 {[%clk 0:02:42]}  h6 {[%clk 0:00:45]} 22. Rfa1 {[%clk 0:02:41]}  f6 {[%clk 0:00:41]} 23. exf6 {[%clk 0:02:40]}  Bxf6 {[%clk 0:00:31]} 24. R1a2 {[%clk 0:02:40]}  d4 {[%clk 0:00:26]} 25. Bd2 {[%clk 0:02:38]}  Rb5 {[%clk 0:00:16]} 26. b4 {[%clk 0:02:33]}  a5 {[%clk 0:00:13]} 27. bxa5 {[%clk 0:02:26]}  Nxc5 {[%clk 0:00:13]} 28. Nxc5 {[%clk 0:02:21]}  Rxc5 {[%clk 0:00:13]} 29. g3 {[%clk 0:02:19]}  Ra8 {[%clk 0:00:09]} 30. a6 {[%clk 0:02:17]}  Rb5 {[%clk 0:00:08]} 31. a7 {[%clk 0:02:14]}  Rb1+ {[%clk 0:00:06]} 32. Kg2 {[%clk 0:02:14]}  Rb7 {[%clk 0:00:06]} 33. Ra6 {[%clk 0:02:09]}  Nb4 {[%clk 0:00:04]} 34. Bxb4+ {[%clk 0:02:08]}  Rxb4 {[%clk 0:00:05]} 35. Rxe6 {[%clk 0:02:07]}  Rb7 {[%clk 0:00:05]} 36. Rea6 {[%clk 0:02:05]}  Ke7 {[%clk 0:00:05]} 37. Nd2 {[%clk 0:02:04]}  Kd7 {[%clk 0:00:05]} 38. Ne4 {[%clk 0:02:04]}  Kc7 {[%clk 0:00:05]} 39. Nxf6 {[%clk 0:02:03]}  gxf6 {[%clk 0:00:05]} 40. Rxf6 {[%clk 0:02:03]}  Raxa7 {[%clk 0:00:06]} 41. Rxa7 {[%clk 0:02:03]}  Rxa7 {[%clk 0:00:04]} 42. Rf7+ {[%clk 0:02:04]} 1-0

[Event "January 2 Early 2024"]
[Site "https://www.chess.com"]
[Date "2024.01.02"]
[Round "1"]
[White "Z_Chess6"]
[Black "Krsnik Cohar, Ivan Vihor"]
[Result "0-1"]
[Board "282"]
[TimeControl "180+1"]
[BlackFideId "14520044"]
[WhiteElo "2037"]
[BlackElo "2554"]
[BlackTeam "CRO"]
[WhiteClock "0:00:32"]
[BlackClock "0:02:28"]

1. d4 {[%clk 0:03:00]}  d5 {[%clk 0:02:58]} 2. c4 {[%clk 0:03:00]}  Bf5 {[%clk 0:02:58]} 3. cxd5 {[%clk 0:02:57]}  Bxb1 {[%clk 0:02:58]} 4. Rxb1 {[%clk 0:02:57]}  Qxd5 {[%clk 0:02:57]} 5. Nf3 {[%clk 0:02:57]}  Nc6 {[%clk 0:02:55]} 6. e3 {[%clk 0:02:34]}  O-O-O {[%clk 0:02:55]} 7. Qc2 {[%clk 0:02:29]}  e5 {[%clk 0:02:54]} 8. dxe5 {[%clk 0:02:12]}  Nxe5 {[%clk 0:02:44]} 9. Nxe5 {[%clk 0:02:05]}  Bb4+ {[%clk 0:02:43]} 10. Ke2 {[%clk 0:01:30]}  Qxe5 {[%clk 0:02:43]} 11. f3 {[%clk 0:01:27]}  Nf6 {[%clk 0:02:40]} 12. Kf2 {[%clk 0:01:22]}  Rhe8 {[%clk 0:02:40]} 13. Bc4 {[%clk 0:01:08]}  Bc5 {[%clk 0:02:38]} 14. Re1 {[%clk 0:01:09]}  Qxh2 {[%clk 0:02:38]} 15. Be6+ {[%clk 0:00:39]}  Rxe6 {[%clk 0:02:35]} 16. Qxc5 {[%clk 0:00:39]}  Ne4+ {[%clk 0:02:28]} 17. fxe4 {[%clk 0:00:32]}  Rf6+ {[%clk 0:02:28]} 0-1

[Event "January 2 Early 2024"]
[Site "https://www.chess.com"]
[Date "2024.01.02"]
[Round "1"]
[White "Grbac, Boris"]
[Black "Zubarev, Alexander"]
[Result "0-1"]
[Board "284"]
[TimeControl "180+1"]
[WhiteFideId "14503565"]
[BlackFideId "14104385"]
[WhiteElo "2028"]
[BlackElo "2554"]
[WhiteTeam "CRO"]
[BlackTeam "UKR"]
[WhiteClock "0:01:10"]
[BlackClock "0:01:28"]

1. e4 {[%clk 0:02:57]}  c5 {[%clk 0:02:54]} 2. d4 {[%clk 0:02:57]}  cxd4 {[%clk 0:02:54]} 3. c3 {[%clk 0:02:57]}  d3 {[%clk 0:02:51]} 4. Bxd3 {[%clk 0:02:56]}  Nc6 {[%clk 0:02:48]} 5. c4 {[%clk 0:02:56]}  g6 {[%clk 0:02:47]} 6. Nf3 {[%clk 0:02:56]}  Bg7 {[%clk 0:02:47]} 7. Nc3 {[%clk 0:02:57]}  d6 {[%clk 0:02:47]} 8. O-O {[%clk 0:02:56]}  Bxc3 {[%clk 0:02:43]} 9. bxc3 {[%clk 0:02:56]}  Nf6 {[%clk 0:02:43]} 10. h3 {[%clk 0:02:56]}  O-O {[%clk 0:02:42]} 11. Bh6 {[%clk 0:02:55]}  Re8 {[%clk 0:02:40]} 12. Qd2 {[%clk 0:02:55]}  Qc7 {[%clk 0:02:38]} 13. Rfe1 {[%clk 0:02:53]}  Ne5 {[%clk 0:02:36]} 14. Nxe5 {[%clk 0:02:50]}  dxe5 {[%clk 0:02:37]} 15. Rad1 {[%clk 0:02:47]}  Be6 {[%clk 0:02:36]} 16. Qe2 {[%clk 0:02:46]}  Nd7 {[%clk 0:02:35]} 17. Rb1 {[%clk 0:02:32]}  Nc5 {[%clk 0:02:28]} 18. Bc2 {[%clk 0:02:29]}  Rac8 {[%clk 0:02:27]} 19. Be3 {[%clk 0:02:28]}  b6 {[%clk 0:02:26]} 20. f3 {[%clk 0:02:17]}  Nb7 {[%clk 0:02:17]} 21. Bd3 {[%clk 0:02:16]}  Bxc4 {[%clk 0:02:15]} 22. Bxc4 {[%clk 0:02:16]}  Qxc4 {[%clk 0:02:16]} 23. Qf2 {[%clk 0:02:17]}  Nd6 {[%clk 0:02:13]} 24. Rbc1 {[%clk 0:02:13]}  Qa4 {[%clk 0:02:04]} 25. h4 {[%clk 0:02:04]}  f6 {[%clk 0:01:54]} 26. h5 {[%clk 0:02:04]}  g5 {[%clk 0:01:54]} 27. Qg3 {[%clk 0:02:00]}  h6 {[%clk 0:01:51]} 28. Qh3 {[%clk 0:02:00]}  Qc4 {[%clk 0:01:45]} 29. Red1 {[%clk 0:01:52]}  Rc6 {[%clk 0:01:43]} 30. Rd5 {[%clk 0:01:52]}  Kf7 {[%clk 0:01:39]} 31. Rcd1 {[%clk 0:01:47]}  Qxa2 {[%clk 0:01:37]} 32. Rxd6 {[%clk 0:01:39]}  Rxd6 {[%clk 0:01:35]} 33. Rxd6 {[%clk 0:01:33]}  exd6 {[%clk 0:01:36]} 34. Qf5 {[%clk 0:01:33]}  Ke7 {[%clk 0:01:35]} 35. Qh7+ {[%clk 0:01:32]}  Qf7 {[%clk 0:01:34]} 36. Qxh6 {[%clk 0:01:33]}  a5 {[%clk 0:01:28]} 37. Bxb6 {[%clk 0:01:10]}  a4 {[%clk 0:01:28]} 0-1